Workbook

Sheet Produktsalgsrapport
B1: Produktets salgsrapport
B20: Produkter

Sheet Historiske data
B1: Historisk produktprisliste og salg
B3: Produkt-id | C3: Produktnavn | D3: Prisdato | E3: Detailpris pr. enhed | F3: Engrospris pr. enhed* | G3: Solgte enheder (detail) | H3: Solgte enheder (engros) | I3: Salg i alt (antal) | J3: Salg i alt (DKK)
B4: 5 | C4: =IFERROR(IF(tblSalg[[#This Row],[Produkt-id]]<>"",VLOOKUP(tblSalg[Produkt-id],tblProdukter[[Produkt-id]:[Navn]],2,FALSE),""),"Unknown Product ID") -> Shorts | D4: 2012-01-01 | E4: 20 | F4: kr. 20 | G4: 629 | H4: 1,254 | I4: =tblSalg[[#This Row],[Solgte enheder (detail)]]+tblSalg[[#This Row],[Solgte enheder (engros)]] -> 1,883 | J4: =tblSalg[[#This Row],[Solgte enheder (detail)]]*tblSalg[[#This Row],[Detailpris pr. enhed]]+tblSalg[[#This Row],[Solgte enheder (engros)]]*tblSalg[[#This Row],[Engrospris pr. enhed*]] -> kr. 37,660
B5: 1 | C5: =IFERROR(IF(tblSalg[[#This Row],[Produkt-id]]<>"",VLOOKUP(tblSalg[Produkt-id],tblProdukter[[Produkt-id]:[Navn]],2,FALSE),""),"Unknown Product ID") -> Trøjer | D5: 2012-01-01 | E5: 88 | F5: kr. 54 | G5: 734 | H5: 1,427 | I5: =tblSalg[[#This Row],[Solgte enheder (detail)]]+tblSalg[[#This Row],[Solgte enheder (engros)]] -> 2,161 | J5: =tblSalg[[#This Row],[Solgte enheder (detail)]]*tblSalg[[#This Row],[Detailpris pr. enhed]]+tblSalg[[#This Row],[Solgte enheder (engros)]]*tblSalg[[#This Row],[Engrospris pr. enhed*]] -> kr. 141,650
B6: 2 | C6: =IFERROR(IF(tblSalg[[#This Row],[Produkt-id]]<>"",VLOOKUP(tblSalg[Produkt-id],tblProdukter[[Produkt-id]:[Navn]],2,FALSE),""),"Unknown Product ID") -> Sandaler | D6: 2012-01-01 | E6: 70 | F6: kr. 44 | G6: 744 | H6: 1,043 | I6: =tblSalg[[#This Row],[Solgte enheder (detail)]]+tblSalg[[#This Row],[Solgte enheder (engros)]] -> 1,787 | J6: =tblSalg[[#This Row],[Solgte enheder (detail)]]*tblSalg[[#This Row],[Detailpris pr. enhed]]+tblSalg[[#This Row],[Solgte enheder (engros)]]*tblSalg[[#This Row],[Engrospris pr. enhed*]] -> kr. 97,972
B7: 3 | C7: =IFERROR(IF(tblSalg[[#This Row],[Produkt-id]]<>"",VLOOKUP(tblSalg[Produkt-id],tblProdukter[[Produkt-id]:[Navn]],2,FALSE),""),"Unknown Product ID") -> Parasoller | D7: 2012-01-01 | E7: 63 | F7: kr. 44 | G7: 681 | H7: 1,523 | I7: =tblSalg[[#This Row],[Solgte enheder (detail)]]+tblSalg[[#This Row],[Solgte enheder (engros)]] -> 2,204 | J7: =tblSalg[[#This Row],[Solgte enheder (detail)]]*tblSalg[[#This Row],[Detailpris pr. enhed]]+tblSalg[[#This Row],[Solgte enheder (engros)]]*tblSalg[[#This Row],[Engrospris pr. enhed*]] -> kr. 109,915
B8: 4 | C8: =IFERROR(IF(tblSalg[[#This Row],[Produkt-id]]<>"",VLOOKUP(tblSalg[Produkt-id],tblProdukter[[Produkt-id]:[Navn]],2,FALSE),""),"Unknown Product ID") -> Vandflasker | D8: 2012-01-01 | E8: 35 | F8: kr. 27 | G8: 602 | H8: 1,822 | I8: =tblSalg[[#This Row],[Solgte enheder (detail)]]+tblSalg[[#This Row],[Solgte enheder (engros)]] -> 2,424 | J8: =tblSalg[[#This Row],[Solgte enheder (detail)]]*tblSalg[[#This Row],[Detailpris pr. enhed]]+tblSalg[[#This Row],[Solgte enheder (engros)]]*tblSalg[[#This Row],[Engrospris pr. enhed*]] -> kr. 70,264
B9: 1 | C9: =IFERROR(IF(tblSalg[[#This Row],[Produkt-id]]<>"",VLOOKUP(tblSalg[Produkt-id],tblProdukter[[Produkt-id]:[Navn]],2,FALSE),""),"Unknown Product ID") -> Trøjer | D9: 2012-02-01 | E9: 55 | F9: kr. 44 | G9: 678 | H9: 1,515 | I9: =tblSalg[[#This Row],[Solgte enheder (detail)]]+tblSalg[[#This Row],[Solgte enheder (engros)]] -> 2,193 | J9: =tblSalg[[#This Row],[Solgte enheder (detail)]]*tblSalg[[#This Row],[Detailpris pr. enhed]]+tblSalg[[#This Row],[Solgte enheder (engros)]]*tblSalg[[#This Row],[Engrospris pr. enhed*]] -> kr. 103,950
B10: 2 | C10: =IFERROR(IF(tblSalg[[#This Row],[Produkt-id]]<>"",VLOOKUP(tblSalg[Produkt-id],tblProdukter[[Produkt-id]:[Navn]],2,FALSE),""),"Unknown Product ID") -> Sandaler | D10: 2012-02-01 | E10: 83 | F10: kr. 54 | G10: 753 | H10: 1,005 | I10: =tblSalg[[#This Row],[Solgte enheder (detail)]]+tblSalg[[#This Row],[Solgte enheder (engros)]] -> 1,758 | J10: =tblSalg[[#This Row],[Solgte enheder (detail)]]*tblSalg[[#This Row],[Detailpris pr. enhed]]+tblSalg[[#This Row],[Solgte enheder (engros)]]*tblSalg[[#This Row],[Engrospris pr. enhed*]] -> kr. 116,769
B11: 3 | C11: =IFERROR(IF(tblSalg[[#This Row],[Produkt-id]]<>"",VLOOKUP(tblSalg[Produkt-id],tblProdukter[[Produkt-id]:[Navn]],2,FALSE),""),"Unknown Product ID") -> Parasoller | D11: 2012-02-01 | E11: 34 | F11: kr. 34 | G11: 986 | H11: 1,069 | I11: =tblSalg[[#This Row],[Solgte enheder (detail)]]+tblSalg[[#This Row],[Solgte enheder (engros)]] -> 2,055 | J11: =tblSalg[[#This Row],[Solgte enheder (detail)]]*tblSalg[[#This Row],[Detailpris pr. enhed]]+tblSalg[[#This Row],[Solgte enheder (engros)]]*tblSalg[[#This Row],[Engrospris pr. enhed*]] -> kr. 69,870
B12: 4 | C12: =IFERROR(IF(tblSalg[[#This Row],[Produkt-id]]<>"",VLOOKUP(tblSalg[Produkt-id],tblProdukter[[Produkt-id]:[Navn]],2,FALSE),""),"Unknown Product ID") -> Vandflasker | D12: 2012-02-01 | E12: 35 | F12: kr. 25 | G12: 848 | H12: 1,211 | I12: =tblSalg[[#This Row],[Solgte enheder (detail)]]+tblSalg[[#This Row],[Solgte enheder (engros)]] -> 2,059 | J12: =tblSalg[[#This Row],[Solgte enheder (detail)]]*tblSalg[[#This Row],[Detailpris pr. enhed]]+tblSalg[[#This Row],[Solgte enheder (engros)]]*tblSalg[[#This Row],[Engrospris pr. enhed*]] -> kr. 59,955
B13: 5 | C13: =IFERROR(IF(tblSalg[[#This Row],[Produkt-id]]<>"",VLOOKUP(tblSalg[Produkt-id],tblProdukter[[Produkt-id]:[Navn]],2,FALSE),""),"Unknown Product ID") -> Shorts | D13: 2012-02-01 | E13: 41 | F13: kr. 38 | G13: 980 | H13: 1,330 | I13: =tblSalg[[#This Row],[Solgte enheder (detail)]]+tblSalg[[#This Row],[Solgte enheder (engros)]] -> 2,310 | J13: =tblSalg[[#This Row],[Solgte enheder (detail)]]*tblSalg[[#This Row],[Detailpris pr. enhed]]+tblSalg[[#This Row],[Solgte enheder (engros)]]*tblSalg[[#This Row],[Engrospris pr. enhed*]] -> kr. 90,720
B14: 1 | C14: =IFERROR(IF(tblSalg[[#This Row],[Produkt-id]]<>"",VLOOKUP(tblSalg[Produkt-id],tblProdukter[[Produkt-id]:[Navn]],2,FALSE),""),"Unknown Product ID") -> Trøjer | D14: 2012-02-29 | E14: 27 | F14: kr. 18 | G14: 533 | H14: 1,936 | I14: =tblSalg[[#This Row],[Solgte enheder (detail)]]+tblSalg[[#This Row],[Solgte enheder (engros)]] -> 2,469 | J14: =tblSalg[[#This Row],[Solgte enheder (detail)]]*tblSalg[[#This Row],[Detailpris pr. enhed]]+tblSalg[[#This Row],[Solgte enheder (engros)]]*tblSalg[[#This Row],[Engrospris pr. enhed*]] -> kr. 49,239
B15: 2 | C15: =IFERROR(IF(tblSalg[[#This Row],[Produkt-id]]<>"",VLOOKUP(tblSalg[Produkt-id],tblProdukter[[Produkt-id]:[Navn]],2,FALSE),""),"Unknown Product ID") -> Sandaler | D15: 2012-02-29 | E15: 38 | F15: kr. 28 | G15: 952 | H15: 1,512 | I15: =tblSalg[[#This Row],[Solgte enheder (detail)]]+tblSalg[[#This Row],[Solgte enheder (engros)]] -> 2,464 | J15: =tblSalg[[#This Row],[Solgte enheder (detail)]]*tblSalg[[#This Row],[Detailpris pr. enhed]]+tblSalg[[#This Row],[Solgte enheder (engros)]]*tblSalg[[#This Row],[Engrospris pr. enhed*]] -> kr. 78,512
B16: 3 | C16: =IFERROR(IF(tblSalg[[#This Row],[Produkt-id]]<>"",VLOOKUP(tblSalg[Produkt-id],tblProdukter[[Produkt-id]:[Navn]],2,FALSE),""),"Unknown Product ID") -> Parasoller | D16: 2012-02-29 | E16: 92 | F16: kr. 92 | G16: 956 | H16: 1,266 | I16: =tblSalg[[#This Row],[Solgte enheder (detail)]]+tblSalg[[#This Row],[Solgte enheder (engros)]] -> 2,222 | J16: =tblSalg[[#This Row],[Solgte enheder (detail)]]*tblSalg[[#This Row],[Detailpris pr. enhed]]+tblSalg[[#This Row],[Solgte enheder (engros)]]*tblSalg[[#This Row],[Engrospris pr. enhed*]] -> kr. 204,424
B17: 4 | C17: =IFERROR(IF(tblSalg[[#This Row],[Produkt-id]]<>"",VLOOKUP(tblSalg[Produkt-id],tblProdukter[[Produkt-id]:[Navn]],2,FALSE),""),"Unknown Product ID") -> Vandflasker | D17: 2012-02-29 | E17: 43 | F17: kr. 36 | G17: 952 | H17: 1,390 | I17: =tblSalg[[#This Row],[Solgte enheder (detail)]]+tblSalg[[#This Row],[Solgte enheder (engros)]] -> 2,342 | J17: =tblSalg[[#This Row],[Solgte enheder (detail)]]*tblSalg[[#This Row],[Detailpris pr. enhed]]+tblSalg[[#This Row],[Solgte enheder (engros)]]*tblSalg[[#This Row],[Engrospris pr. enhed*]] -> kr. 90,976
B18: 5 | C18: =IFERROR(IF(tblSalg[[#This Row],[Produkt-id]]<>"",VLOOKUP(tblSalg[Produkt-id],tblProdukter[[Produkt-id]:[Navn]],2,FALSE),""),"Unknown Product ID") -> Shorts | D18: 2012-02-29 | E18: 98 | F18: kr. 73 | G18: 530 | H18: 1,452 | I18: =tblSalg[[#This Row],[Solgte enheder (detail)]]+tblSalg[[#This Row],[Solgte enheder (engros)]] -> 1,982 | J18: =tblSalg[[#This Row],[Solgte enheder (detail)]]*tblSalg[[#This Row],[Detailpris pr. enhed]]+tblSalg[[#This Row],[Solgte enheder (engros)]]*tblSalg[[#This Row],[Engrospris pr. enhed*]] -> kr. 157,936
B19: 1 | C19: =IFERROR(IF(tblSalg[[#This Row],[Produkt-id]]<>"",VLOOKUP(tblSalg[Produkt-id],tblProdukter[[Produkt-id]:[Navn]],2,FALSE),""),"Unknown Product ID") -> Trøjer | D19: 2012-03-31 | E19: 38 | F19: kr. 28 | G19: 973 | H19: 1,415 | I19: =tblSalg[[#This Row],[Solgte enheder (detail)]]+tblSalg[[#This Row],[Solgte enheder (engros)]] -> 2,388 | J19: =tblSalg[[#This Row],[Solgte enheder (detail)]]*tblSalg[[#This Row],[Detailpris pr. enhed]]+tblSalg[[#This Row],[Solgte enheder (engros)]]*tblSalg[[#This Row],[Engrospris pr. enhed*]] -> kr. 76,594
B20: 2 | C20: =IFERROR(IF(tblSalg[[#This Row],[Produkt-id]]<>"",VLOOKUP(tblSalg[Produkt-id],tblProdukter[[Produkt-id]:[Navn]],2,FALSE),""),"Unknown Product ID") -> Sandaler | D20: 2012-03-31 | E20: 50 | F20: kr. 36 | G20: 672 | H20: 1,105 | I20: =tblSalg[[#This Row],[Solgte enheder (detail)]]+tblSalg[[#This Row],[Solgte enheder (engros)]] -> 1,777 | J20: =tblSalg[[#This Row],[Solgte enheder (detail)]]*tblSalg[[#This Row],[Detailpris pr. enhed]]+tblSalg[[#This Row],[Solgte enheder (engros)]]*tblSalg[[#This Row],[Engrospris pr. enhed*]] -> kr. 73,380
B21: 3 | C21: =IFERROR(IF(tblSalg[[#This Row],[Produkt-id]]<>"",VLOOKUP(tblSalg[Produkt-id],tblProdukter[[Produkt-id]:[Navn]],2,FALSE),""),"Unknown Product ID") -> Parasoller | D21: 2012-03-31 | E21: 24 | F21: kr. 23 | G21: 769 | H21: 1,629 | I21: =tblSalg[[#This Row],[Solgte enheder (detail)]]+tblSalg[[#This Row],[Solgte enheder (engros)]] -> 2,398 | J21: =tblSalg[[#This Row],[Solgte enheder (detail)]]*tblSalg[[#This Row],[Detailpris pr. enhed]]+tblSalg[[#This Row],[Solgte enheder (engros)]]*tblSalg[[#This Row],[Engrospris pr. enhed*]] -> kr. 55,923
B22: 4 | C22: =IFERROR(IF(tblSalg[[#This Row],[Produkt-id]]<>"",VLOOKUP(tblSalg[Produkt-id],tblProdukter[[Produkt-id]:[Navn]],2,FALSE),""),"Unknown Product ID") -> Vandflasker | D22: 2012-03-31 | E22: 72 | F22: kr. 57 | G22: 985 | H22: 1,848 | I22: =tblSalg[[#This Row],[Solgte enheder (detail)]]+tblSalg[[#This Row],[Solgte enheder (engros)]] -> 2,833 | J22: =tblSalg[[#This Row],[Solgte enheder (detail)]]*tblSalg[[#This Row],[Detailpris pr. enhed]]+tblSalg[[#This Row],[Solgte enheder (engros)]]*tblSalg[[#This Row],[Engrospris pr. enhed*]] -> kr. 176,256
B23: 5 | C23: =IFERROR(IF(tblSalg[[#This Row],[Produkt-id]]<>"",VLOOKUP(tblSalg[Produkt-id],tblProdukter[[Produkt-id]:[Navn]],2,FALSE),""),"Unknown Product ID") -> Shorts | D23: 2012-03-31 | E23: 85 | F23: kr. 43 | G23: 721 | H23: 1,426 | I23: =tblSalg[[#This Row],[Solgte enheder (detail)]]+tblSalg[[#This Row],[Solgte enheder (engros)]] -> 2,147 | J23: =tblSalg[[#This Row],[Solgte enheder (detail)]]*tblSalg[[#This Row],[Detailpris pr. enhed]]+tblSalg[[#This Row],[Solgte enheder (engros)]]*tblSalg[[#This Row],[Engrospris pr. enhed*]] -> kr. 122,603
B24: 1 | C24: =IFERROR(IF(tblSalg[[#This Row],[Produkt-id]]<>"",VLOOKUP(tblSalg[Produkt-id],tblProdukter[[Produkt-id]:[Navn]],2,FALSE),""),"Unknown Product ID") -> Trøjer | D24: 2012-04-30 | E24: 91 | F24: kr. 65 | G24: 603 | H24: 1,226 | I24: =tblSalg[[#This Row],[Solgte enheder (detail)]]+tblSalg[[#This Row],[Solgte enheder (engros)]] -> 1,829 | J24: =tblSalg[[#This Row],[Solgte enheder (detail)]]*tblSalg[[#This Row],[Detailpris pr. enhed]]+tblSalg[[#This Row],[Solgte enheder (engros)]]*tblSalg[[#This Row],[Engrospris pr. enhed*]] -> kr. 134,563
B25: 2 | C25: =IFERROR(IF(tblSalg[[#This Row],[Produkt-id]]<>"",VLOOKUP(tblSalg[Produkt-id],tblProdukter[[Produkt-id]:[Navn]],2,FALSE),""),"Unknown Product ID") -> Sandaler | D25: 2012-04-30 | E25: 91 | F25: kr. 55 | G25: 892 | H25: 1,823 | I25: =tblSalg[[#This Row],[Solgte enheder (detail)]]+tblSalg[[#This Row],[Solgte enheder (engros)]] -> 2,715 | J25: =tblSalg[[#This Row],[Solgte enheder (detail)]]*tblSalg[[#This Row],[Detailpris pr. enhed]]+tblSalg[[#This Row],[Solgte enheder (engros)]]*tblSalg[[#This Row],[Engrospris pr. enhed*]] -> kr. 181,437
B26: 3 | C26: =IFERROR(IF(tblSalg[[#This Row],[Produkt-id]]<>"",VLOOKUP(tblSalg[Produkt-id],tblProdukter[[Produkt-id]:[Navn]],2,FALSE),""),"Unknown Product ID") -> Parasoller | D26: 2012-04-30 | E26: 42 | F26: kr. 42 | G26: 611 | H26: 1,181 | I26: =tblSalg[[#This Row],[Solgte enheder (detail)]]+tblSalg[[#This Row],[Solgte enheder (engros)]] -> 1,792 | J26: =tblSalg[[#This Row],[Solgte enheder (detail)]]*tblSalg[[#This Row],[Detailpris pr. enhed]]+tblSalg[[#This Row],[Solgte enheder (engros)]]*tblSalg[[#This Row],[Engrospris pr. enhed*]] -> kr. 75,264
B27: 4 | C27: =IFERROR(IF(tblSalg[[#This Row],[Produkt-id]]<>"",VLOOKUP(tblSalg[Produkt-id],tblProdukter[[Produkt-id]:[Navn]],2,FALSE),""),"Unknown Product ID") -> Vandflasker | D27: 2012-04-30 | E27: 85 | F27: kr. 43 | G27: 530 | H27: 1,039 | I27: =tblSalg[[#This Row],[Solgte enheder (detail)]]+tblSalg[[#This Row],[Solgte enheder (engros)]] -> 1,569 | J27: =tblSalg[[#This Row],[Solgte enheder (detail)]]*tblSalg[[#This Row],[Detailpris pr. enhed]]+tblSalg[[#This Row],[Solgte enheder (engros)]]*tblSalg[[#This Row],[Engrospris pr. enhed*]] -> kr. 89,727
B28: 5 | C28: =IFERROR(IF(tblSalg[[#This Row],[Produkt-id]]<>"",VLOOKUP(tblSalg[Produkt-id],tblProdukter[[Produkt-id]:[Navn]],2,FALSE),""),"Unknown Product ID") -> Shorts | D28: 2012-04-30 | E28: 82 | F28: kr. 71 | G28: 716 | H28: 1,249 | I28: =tblSalg[[#This Row],[Solgte enheder (detail)]]+tblSalg[[#This Row],[Solgte enheder (engros)]] -> 1,965 | J28: =tblSalg[[#This Row],[Solgte enheder (detail)]]*tblSalg[[#This Row],[Detailpris pr. enhed]]+tblSalg[[#This Row],[Solgte enheder (engros)]]*tblSalg[[#This Row],[Engrospris pr. enhed*]] -> kr. 147,391
B29: 1 | C29: =IFERROR(IF(tblSalg[[#This Row],[Produkt-id]]<>"",VLOOKUP(tblSalg[Produkt-id],tblProdukter[[Produkt-id]:[Navn]],2,FALSE),""),"Unknown Product ID") -> Trøjer | D29: 2012-05-14 | E29: 34 | F29: kr. 31 | G29: 850 | H29: 1,548 | I29: =tblSalg[[#This Row],[Solgte enheder (detail)]]+tblSalg[[#This Row],[Solgte enheder (engros)]] -> 2,398 | J29: =tblSalg[[#This Row],[Solgte enheder (detail)]]*tblSalg[[#This Row],[Detailpris pr. enhed]]+tblSalg[[#This Row],[Solgte enheder (engros)]]*tblSalg[[#This Row],[Engrospris pr. enhed*]] -> kr. 76,888
B30: 2 | C30: =IFERROR(IF(tblSalg[[#This Row],[Produkt-id]]<>"",VLOOKUP(tblSalg[Produkt-id],tblProdukter[[Produkt-id]:[Navn]],2,FALSE),""),"Unknown Product ID") -> Sandaler | D30: 2012-05-14 | E30: 64 | F30: kr. 40 | G30: 876 | H30: 1,663 | I30: =tblSalg[[#This Row],[Solgte enheder (detail)]]+tblSalg[[#This Row],[Solgte enheder (engros)]] -> 2,539 | J30: =tblSalg[[#This Row],[Solgte enheder (detail)]]*tblSalg[[#This Row],[Detailpris pr. enhed]]+tblSalg[[#This Row],[Solgte enheder (engros)]]*tblSalg[[#This Row],[Engrospris pr. enhed*]] -> kr. 122,584
B31: 3 | C31: =IFERROR(IF(tblSalg[[#This Row],[Produkt-id]]<>"",VLOOKUP(tblSalg[Produkt-id],tblProdukter[[Produkt-id]:[Navn]],2,FALSE),""),"Unknown Product ID") -> Parasoller | D31: 2012-05-14 | E31: 33 | F31: kr. 30 | G31: 881 | H31: 1,149 | I31: =tblSalg[[#This Row],[Solgte enheder (detail)]]+tblSalg[[#This Row],[Solgte enheder (engros)]] -> 2,030 | J31: =tblSalg[[#This Row],[Solgte enheder (detail)]]*tblSalg[[#This Row],[Detailpris pr. enhed]]+tblSalg[[#This Row],[Solgte enheder (engros)]]*tblSalg[[#This Row],[Engrospris pr. enhed*]] -> kr. 63,543
B32: 4 | C32: =IFERROR(IF(tblSalg[[#This Row],[Produkt-id]]<>"",VLOOKUP(tblSalg[Produkt-id],tblProdukter[[Produkt-id]:[Navn]],2,FALSE),""),"Unknown Product ID") -> Vandflasker | D32: 2012-05-14 | E32: 29 | F32: kr. 27 | G32: 802 | H32: 1,548 | I32: =tblSalg[[#This Row],[Solgte enheder (detail)]]+tblSalg[[#This Row],[Solgte enheder (engros)]] -> 2,350 | J32: =tblSalg[[#This Row],[Solgte enheder (detail)]]*tblSalg[[#This Row],[Detailpris pr. enhed]]+tblSalg[[#This Row],[Solgte enheder (engros)]]*tblSalg[[#This Row],[Engrospris pr. enhed*]] -> kr. 65,054
B33: 5 | C33: =IFERROR(IF(tblSalg[[#This Row],[Produkt-id]]<>"",VLOOKUP(tblSalg[Produkt-id],tblProdukter[[Produkt-id]:[Navn]],2,FALSE),""),"Unknown Product ID") -> Shorts | D33: 2013-12-11 | E33: 24 | F33: kr. 15 | G33: 824 | H33: 1,994 | I33: =tblSalg[[#This Row],[Solgte enheder (detail)]]+tblSalg[[#This Row],[Solgte enheder (engros)]] -> 2,818 | J33: =tblSalg[[#This Row],[Solgte enheder (detail)]]*tblSalg[[#This Row],[Detailpris pr. enhed]]+tblSalg[[#This Row],[Solgte enheder (engros)]]*tblSalg[[#This Row],[Engrospris pr. enhed*]] -> kr. 49,686

Sheet Prisliste
B1: Produktprisliste
B3: Adventure Works
B4: Møllevej 321
B5: Østerfelt
B6: Telefon: (+45) 5741 5741
B7: Fax: (+45) 5741 5671
B8: www.adventure-works.com | F8: Sidst opdateret d. 15. august 2013
B10: Produkt-id | C10: Navn | D10: Beskrivelse | E10: Detailpris pr. enhed | F10: Engrospris pr. enhed*
B11: 1 | C11: Trøjer | D11: Vær sej hele sommeren i vores krympebehandlede trøjer i 100 % bomuld. | E11: kr. 22 | F11: kr. 15
B12: 2 | C12: Sandaler | D12: Brug vores sandaler med kraftige såler, og gå i det varmeste sand uden problemer. | E12: kr. 10 | F12: kr. 6
B13: 3 | C13: Parasoller | D13: Gå i dækning for solen under vores ekstra store strandparasol, som blokerer 96 % af de skadelige UV-stråler. | E13: kr. 30 | F13: kr. 20
B14: 4 | C14: Vandflasker | D14: Drik vand med en perfekt temperatur af vores isolerede vandflasker. | E14: kr. 7 | F14: kr. 5
B15: 5 | C15: Shorts | D15: Gå direkte fra vandet til bilen i vores hurtigtørrende nylonshorts. | E15: kr. 15 | F15: kr. 8
F17: Ring til os for varer, der ikke er angivet.
F18: *Engrosprisen gælder for partier på 12 eller flere enheder.

Sheet Pivottabel over prispoint (hidden)
B1: Pivottabel med prispoint
B2: Dette ark skal forblive skjult. Ændringer, der foretages i pivottabellen, kan forårsage forkert data i rapporten over produktsalg.
B3: Valgte produkter | C3: =IF(LEN(B5),B5,"None") -> Sandaler
B4: Produktnavn | C4: Detailpris pr. enhed | D4: Sum af Salg i alt (antal)
B5: Sandaler | C5: 38 | D5: 2464
C6: 50 | D6: 1777
C7: 64 | D7: 2539
C8: 70 | D8: 1787
C9: 83 | D9: 1758
C10: 91 | D10: 2715

Sheet Pivottabel over salgstendenser (hidden)
B1: Pivottabel med salgstendens
B2: Dette ark skal forblive skjult. Ændringer, der foretages i pivottabellen, kan forårsage forkert data i rapporten over produktsalg.
B3: Sum af Salg i alt (antal) | C3: Produktnavn
B4: Prisdato | C4: Sandaler
B5: jan | C5: 1787
B6: feb | C6: 4222
B7: mar | C7: 1777
B8: apr | C8: 2715
B9: maj | C9: 2539
